bitfinex/quotes_ETHUSD_20250611
["timestamp","ask_amount","ask_price","bid_price","bid_amount"]
[1749645680526,22.62936735,2803.2,2803.1,0.04]
[1749645680744,23.17936735,2803.2,2803.1,0.04]
[1749645680914,34.1284239,2803.2,2803.1,0.04]
[1749645681120,3.56801395,2802.7,2802.4,0.1784]
[1749645681361,8.63402068,2802.7,2802.4,0.1784]
[1749645681562,8.63402068,2802.7,2802.1,0.04]
[1749645681563,10.0,2802.6,2802.1,0.04]
[1749645681869,5.066,2802.7,2802.1,0.04]
[1749645682015,0.1776,2803.0,2802.5,0.1784]
[1749645682221,6.955,2802.9,2802.5,0.1784]
[1749645682421,1.94570605,2803.3,2802.8,0.1776]
[1749645682638,0.53680605,2803.3,2802.8,0.1776]
[1749645682851,0.35920605,2803.3,2802.2,1.41662113]
[1749645683065,10.0,2803.3,2803.1,0.1776]
[1749645683548,13.56723176,2803.3,2803.1,0.1776]
[1749645683959,10.0,2803.3,2803.1,0.1776]
[1749645684725,9.239,2803.7,2802.7,1.41662113]
[1749645684930,0.1776,2804.1,2803.6,1.6274]
[1749645685123,0.34912157,2804.8,2803.6,1.6274]
[1749645685124,5.41312157,2804.8,2803.6,1.6274]
[1749645685382,0.1776,2804.5,2803.6,1.6274]
[1749645685530,10.0,2803.7,2803.6,0.1776]
[1749645685724,1.889,2804.1,2803.6,0.1776]
[1749645685958,2.24752326,2804.1,2803.6,0.1776]
[1749645686167,2.24752326,2804.1,2803.0,1.4463]
[1749645686469,12.24752326,2804.1,2803.0,1.4463]
[1749645686772,2.24752326,2804.1,2803.8,0.1776]
[1749645687268,2.24752326,2804.1,2803.0,1.4463]
[1749645687483,2.24752326,2804.1,2804.0,0.1776]
[1749645689852,1.889,2804.1,2804.0,0.1776]
[1749645692974,1.877,2804.4,2804.0,0.1776]
[1749645693160,1.5059,2804.3,2803.5,1.525]
[1749645693366,3.56620881,2804.1,2803.5,1.525]
[1749645693669,3.56620881,2804.1,2803.8,0.1776]
[1749645693670,3.56620724,2804.1,2803.8,0.1776]
[1749645693873,10.0,2804.2,2803.8,0.1776]
[1749645694077,13.56609153,2804.2,2804.0,0.1776]
[1749645694253,4.11620662,2804.1,2803.5,1.525]
[1749645694461,3.5663719,2804.0,2803.8,0.1776]
[1749645694772,2.447192,2804.1,2803.1,1.5377]
[1749645694773,13.566504,2803.9,2803.1,1.5377]
[1749645694998,10.0,2803.9,2803.1,1.5377]
[1749645695150,3.56667668,2803.8,2803.1,1.5377]
[1749645695349,13.56667668,2803.8,2803.6,0.1776]
[1749645695552,11.877,2803.8,2803.6,0.1776]
[1749645695859,2.1217192,2804.0,2803.6,0.1776]
[1749645696061,3.566461,2803.9,2803.6,0.1776]
[1749645696268,3.56665345,2803.8,2803.6,0.1776]
[1749645696467,1.92549469,2803.8,2803.6,0.1776]
[1749645697838,12.1217192,2804.0,2803.6,0.1776]
[1749645698036,12.1217192,2804.0,2803.8,0.1776]
[1749645698037,2.1217192,2804.0,2803.8,0.1776]
[1749645698241,3.566461,2803.9,2803.8,0.1776]
[1749645698437,5.603,2803.9,2802.6,1.4489]
[1749645698641,3.56717496,2803.4,2802.6,1.4489]
[1749645698863,3.56742387,2803.2,2802.6,1.4489]
[1749645699064,11.4566,2803.8,2802.6,1.4489]
[1749645699259,1.67066,2803.8,2802.6,1.4489]
[1749645699462,1.5132,2804.2,2802.6,1.4489]
[1749645699664,1.877,2804.1,2802.8,1.5779]
[1749645700099,10.0,2804.0,2802.8,1.5779]
[1749645700299,1.7377,2803.9,2802.8,1.5779]
[1749645700492,3.56691951,2803.6,2802.8,1.5779]
[1749645700681,10.0,2803.5,2802.8,1.5779]
[1749645700869,13.56703449,2803.5,2802.8,1.5779]
[1749645701194,4.11668979,2803.8,2802.8,1.5779]
[1749645701398,3.56686361,2803.6,2802.8,1.5779]
[1749645701600,10.0,2803.5,2802.8,1.5779]
[1749645701789,2.55597,2803.7,2802.8,1.5779]
[1749645702190,0.52,2804.1,2802.8,1.5779]
[1749645702390,4.1162373,2804.1,2802.8,1.5779]
[1749645702589,2.427,2804.1,2802.8,1.5779]
[1749645702990,5.99327435,2804.1,2802.8,1.5779]
[1749645703167,11.877,2804.1,2802.8,1.5779]
[1749645703619,1.877,2804.1,2802.8,1.5779]
[1749645703822,1.877,2804.1,2802.9,0.87689566]
[1749645704527,1.877,2804.1,2803.0,1.4517]
[1749645707148,0.04,2804.9,2803.7,1.5773]
[1749645707448,0.04,2804.9,2803.8,0.87683566]
[1749645707747,3.5654582,2804.7,2803.7,1.5773]
[1749645707946,0.55,2804.7,2803.7,1.5773]
[1749645708132,13.56559216,2804.6,2803.7,1.5773]
[1749645708337,14.29313135,2804.7,2804.2,0.1776]
[1749645708632,3.56560108,2804.6,2804.2,0.1776]
[1749645708831,1.42932011,2804.5,2804.2,0.1776]
[1749645709129,3.56563171,2804.6,2804.2,0.1776]
[1749645709316,14.293079,2804.7,2804.2,0.1776]
[1749645709521,0.04,2804.9,2803.7,1.5773]
[1749645709708,0.04,2804.9,2804.6,0.1776]
[1749645710134,0.04,2804.9,2804.8,0.1776]
[1749645710346,0.04,2804.9,2804.8,1.6868]
[1749645710646,1.10458544,2804.9,2804.8,1.6868]
[1749645710818,0.04,2804.9,2804.8,1.6868]
[1749645713565,0.04,2804.9,2804.8,6.7268]
[1749645713846,0.04,2804.9,2804.8,1.6868]
[1749645714053,0.04,2804.9,2804.8,6.7258]
[1749645714206,0.04,2804.9,2804.8,16.7258]
[1749645714608,0.04,2805.9,2805.5,1.4449]
[1749645714930,0.04,2805.9,2805.7,1.4449]
[1749645715134,0.04,2805.9,2805.8,0.1776]
[1749645715303,0.04,2805.9,2805.8,2.28345]
[1749645715502,0.04,2805.9,2805.8,6.6554]
[1749645715732,0.04,2805.9,2805.8,1.6174]
[1749645715947,0.04,2805.9,2805.8,6.6534]
[1749645716107,0.04,2805.9,2805.8,1.6174]
[1749645716821,0.04,2805.9,2805.8,0.1776]
[1749645717445,0.40036811,2805.9,2805.8,0.1776]
[1749645717618,0.04,2805.9,2805.8,0.1776]
[1749645718908,0.04,2805.9,2804.9,1.5174]
[1749645718909,0.59,2805.9,2804.9,1.5174]
[1749645719107,0.55,2805.8,2804.9,1.5174]
[1749645719321,0.04,2805.9,2804.9,1.5174]
[1749645720048,0.04,2805.9,2805.0,5.032]
[1749645720375,0.04,2805.9,2804.9,1.5174]
[1749645720510,0.04,2805.9,2805.0,5.031]
[1749645721035,0.04,2805.9,2804.9,1.5174]
[1749645721749,0.04,2805.9,2804.9,2.38824565]
[1749645721948,0.04,2805.9,2804.9,1.5174]
[1749645722150,0.55,2805.6,2804.9,1.5174]
[1749645722808,0.55,2805.7,2804.9,1.5174]
[1749645723011,1.4987,2805.6,2804.5,1.394]
[1749645723256,10.55,2805.5,2804.5,1.394]
[1749645723550,0.55,2805.1,2804.1,1.4793]
[1749645723752,1.4987,2805.6,2804.1,1.4793]
[1749645724063,0.55,2805.2,2804.1,1.4793]
[1749645724212,0.4114707,2805.1,2804.1,1.4793]
[1749645724410,0.55,2805.2,2804.1,1.4793]
[1749645724748,10.0,2805.3,2804.1,1.4793]
[1749645724937,10.55,2805.1,2804.1,1.4793]
[1749645725308,0.55,2805.1,2804.1,1.4793]
[1749645725511,0.55,2805.5,2804.2,0.65073]
[1749645725736,0.55,2804.5,2803.5,1.3853]
[1749645725923,10.0,2805.1,2803.5,1.3853]
[1749645725924,0.55,2804.9,2803.5,1.3853]
[1749645726458,10.55,2805.3,2803.6,1.3853]
[1749645726744,0.04,2805.9,2804.3,1.4818]
[1749645726949,0.55,2805.8,2804.5,1.4818]
[1749645727253,0.04,2805.9,2804.6,0.65068]
[1749645727723,0.55,2805.6,2804.6,0.65068]
[1749645727930,0.55,2805.6,2804.5,6.5058]
[1749645728244,0.55,2805.8,2804.5,6.5058]
[1749645728610,10.55,2805.8,2804.5,6.5058]
[1749645729030,10.55,2805.8,2805.5,0.1776]
[1749645729353,12.12238848,2805.8,2805.5,0.1776]
[1749645729527,2.12238848,2805.8,2805.5,0.1776]
[1749645730051,0.55,2805.7,2804.6,5.022]
[1749645730260,0.76623885,2805.7,2805.3,0.1776]
[1749645731052,4.7,2805.6,2804.6,5.022]
[1749645731361,4.7,2805.7,2805.6,0.1776]
[1749645731516,12.51,2805.9,2805.4,1.5196]
[1749645731714,4.74,2805.9,2805.6,0.1776]
[1749645731913,4.74,2805.9,2805.8,0.1776]
[1749645733126,0.04,2805.9,2805.8,0.1776]
[1749645734133,0.04,2805.9,2805.8,0.1876]
[1749645735950,0.04,2805.9,2805.8,0.01]
[1749645736133,0.59,2805.9,2805.8,0.01]
[1749645736333,0.04,2805.9,2805.8,0.01]
[1749645736744,0.04,2805.9,2805.4,1.5196]
[1749645738267,0.04,2805.9,2805.5,0.01]
[1749645739573,0.04,2805.9,2805.5,1.16296]
[1749645739868,0.04,2805.9,2805.6,5.012]
[1749645740231,0.04,2805.9,2805.7,0.01]
[1749645741047,0.04,2805.9,2805.6,5.012]
[1749645742471,0.04,2805.9,2805.4,1.5196]
[1749645742668,0.04,2805.9,2805.5,5.009]
[1749645742968,4.74,2805.9,2805.4,1.5196]
[1749645743167,6.12801121,2805.9,2804.2,1.381]
[1749645743371,9.14011211,2805.8,2804.2,1.381]
[1749645743569,6.597,2805.9,2804.4,10.52111211]
[1749645743772,4.74,2805.9,2804.5,1.381]
[1749645744248,4.74,2805.9,2804.5,1.391]
[1749645744836,9.14011211,2805.8,2804.6,5.006]
[1749645745033,9.14011211,2805.8,2804.7,0.6397]
[1749645745234,9.14011211,2805.8,2804.8,0.01]
[1749645745464,4.7,2805.7,2804.8,0.01]
[1749645745674,4.7,2805.7,2804.9,5.006]
[1749645745848,4.7,2805.7,2805.6,0.1776]
[1749645746046,4.5224,2805.5,2804.9,5.006]
[1749645746267,4.5224,2805.4,2805.0,1.4868]
[1749645746568,0.04,2805.9,2805.1,9.14011211]
[1749645746745,0.04,2805.9,2805.6,0.01]
[1749645746942,0.04,2805.9,2805.8,0.1776]
[1749645747769,0.04,2805.9,2805.8,1.6058]
[1749645747970,0.04,2805.9,2805.8,2.26678]
[1749645748156,1.898,2806.9,2805.8,2.26678]
[1749645748157,0.04,2806.9,2805.9,1.4282]
[1749645748365,0.04,2806.9,2806.4,1.4856]
[1749645748671,0.04,2806.9,2806.7,1.4856]
[1749645748829,0.04,2806.9,2806.8,10.0]
[1749645749037,0.04,2806.9,2806.7,1.4856]
[1749645749243,0.04,2806.9,2806.8,5.002]
[1749645749483,0.04,2807.9,2806.8,1.6451]
[1749645749657,0.04,2807.9,2806.9,5.002]
[1749645749853,0.04,2807.9,2807.0,5.001]
[1749645750200,0.04,2807.9,2807.0,5.0]
[1749645750584,0.04,2808.9,2807.8,8.78128967]
[1749645750787,0.04,2808.9,2807.9,0.87812897]
[1749645750944,0.04,2808.9,2808.0,5.0]
[1749645751984,0.04,2808.9,2808.2,1.433]
[1749645752487,0.04,2808.9,2808.4,1.3831]
[1749645752695,0.04,2808.9,2808.8,1.3831]
[1749645753194,1.05920267,2811.4,2809.0,0.55]
[1749645753494,7.17718967,2811.4,2809.0,1.4212]
[1749645753647,7.17718967,2811.4,2808.9,10.0]
[1749645753648,1.4925,2811.7,2809.8,7.17718967]
[1749645753848,3.3285,2811.7,2809.8,6.4351]
[1749645754261,3.3285,2811.7,2809.5,10.0]
[1749645754262,1.4925,2811.7,2809.9,1.4401]
[1749645754484,1.4925,2811.7,2810.0,4.995]
[1749645754785,1.4925,2811.7,2810.1,6.4351]
[1749645754786,5.04911951,2811.7,2810.1,6.4351]
[1749645754990,1.4925,2811.7,2810.2,4.995]
[1749645755161,1.4925,2811.7,2810.1,1.4401]
[1749645755162,1.4925,2811.7,2810.3,4.994]
[1749645755504,6.88410357,2811.7,2810.3,4.994]
[1749645755664,3.55694965,2811.4,2810.1,1.4401]
[1749645755863,3.55694965,2811.4,2808.9,7.17718967]
[1749645755864,7.17718967,2810.7,2809.3,1.4308]
[1749645756064,0.86581897,2810.6,2809.3,6.4228]
[1749645756265,2.70081897,2810.6,2809.3,4.991]
[1749645756469,0.86581897,2810.6,2809.3,6.4176]
[1749645756669,1.481,2810.8,2809.3,6.4176]
[1749645757250,10.04,2810.9,2809.5,7.17718967]
[1749645757251,0.04,2810.9,2809.5,7.17718967]
[1749645757609,0.00384702,2812.2,2809.8,0.55]
[1749645757782,7.17718967,2811.7,2810.5,1.3939]
[1749645757984,0.71771897,2811.6,2810.5,1.3939]
[1749645758169,0.71771897,2811.6,2810.2,4.99]
[1749645758370,1.4339,2811.9,2810.3,1.4883]
[1749645758658,1.4339,2811.9,2810.4,4.99]
[1749645759496,4.99029326,2811.9,2810.4,4.99]
[1749645759696,0.49902933,2811.8,2810.4,5.63783]
[1749645760367,3.5565284,2811.8,2810.4,4.99]
[1749645760583,1.835,2811.7,2811.6,0.1776]
[1749645760780,1.835,2811.7,2810.4,4.987]
[1749645761013,3.55690182,2811.5,2810.4,4.987]
[1749645761214,3.55756582,2811.0,2810.1,0.04]
[1749645761398,1.834,2811.2,2810.1,0.04]
[1749645761712,1.4833,2811.4,2811.1,0.1776]
[1749645761885,8.66048967,2811.4,2811.1,0.1776]
[1749645762086,1.4833,2811.4,2810.1,0.04]
[1749645762286,1.4833,2811.4,2811.3,0.1776]
[1749645762488,5.04024671,2811.4,2810.1,0.04]
[1749645762810,4.96222575,2811.3,2811.0,0.1776]
[1749645762969,1.40514364,2811.3,2811.0,0.1776]
[1749645763177,6.79629391,2811.3,2811.1,0.1776]
[1749645763610,1.40514364,2811.3,2811.1,0.1776]
[1749645763812,1.5123,2811.8,2810.6,4.984]
[1749645764021,1.5123,2811.8,2811.6,0.1776]
[1749645764823,1.50724702,2812.2,2811.6,0.1776]
[1749645765170,1.50724702,2812.2,2812.1,0.1776]
[1749645765574,0.00384702,2812.2,2812.1,0.1776]
[1749645767299,0.00384702,2812.2,2811.7,4.981]
[1749645768085,0.04,2812.9,2811.7,4.981]
[1749645768289,0.04,2812.9,2811.6,1.4418]
[1749645768477,0.04,2812.9,2811.7,4.978]
[1749645768676,0.04,2812.9,2812.1,1.3844]
[1749645769000,0.04,2812.9,2812.1,10.0]
[1749645769325,0.04,2812.9,2812.2,1.4452]
[1749645770901,0.04,2812.9,2811.8,6.4799]
[1749645771211,0.04,2812.9,2811.8,7.12789]
[1749645771974,0.04,2812.9,2811.8,6.4799]
[1749645772179,0.04,2812.9,2811.9,4.974]
[1749645772676,7.1,2813.1,2811.9,4.974]
[1749645773276,7.1,2813.1,2812.2,7.17718967]
[1749645773582,7.1,2813.1,2813.0,8.56298967]
[1749645773783,7.1,2813.1,2813.0,13.53598967]
[1749645774199,5.9953125,2813.1,2813.0,23.53598967]
[1749645774399,9.76940817,2814.5,2813.4,0.55]
[1749645774714,9.76940817,2814.5,2814.1,10.0]
[1749645774915,9.76940817,2814.5,2814.2,4.972]
[1749645775248,9.76940817,2814.5,2814.2,0.86151695]
[1749645775538,9.76940817,2814.5,2814.4,1.5064]
[1749645776039,9.76940817,2814.5,2814.4,6.655]
[1749645776252,9.76940817,2814.5,2814.4,5.1486]
[1749645776604,9.76940817,2814.5,2814.4,0.1776]
[1749645776801,10.74634899,2814.5,2814.4,0.1776]
[1749645777832,9.76940817,2814.5,2814.4,0.1776]
[1749645778037,0.35294995,2815.4,2814.4,13.75958967]
[1749645778234,1.4324,2816.2,2814.5,4.968]
[1749645778547,1.4324,2816.7,2814.8,7.17718967]
[1749645778748,1.4457,2815.8,2814.8,4.967]
[1749645779035,4.99717521,2815.8,2814.5,4.967]
[1749645779209,1.4457,2815.8,2814.8,0.1776]
[1749645779409,0.04218411,2815.9,2814.8,0.1776]
[1749645779902,0.04218411,2815.9,2815.0,10.0]
[1749645780233,0.04218411,2815.9,2815.1,4.965]
[1749645780536,0.04218411,2815.9,2815.8,1.5796]
[1749645781032,0.04218411,2815.9,2815.8,0.1768]
[1749645782353,0.04218411,2815.9,2815.8,0.18177573]
[1749645784348,0.04218411,2815.9,2815.8,0.00497573]
[1749645784518,0.04218411,2815.9,2815.8,0.18177573]
[1749645784714,1.85618411,2815.9,2815.8,0.18177573]
[1749645784917,0.04218411,2815.9,2815.8,0.18177573]
[1749645785716,0.04218411,2815.9,2815.8,0.00497573]
[1749645785923,8.89784675,2815.9,2815.8,0.00497573]
[1749645786348,0.04218411,2815.9,2815.8,0.00497573]
[1749645786558,1.66386878,2815.9,2815.8,0.00497573]
[1749645786759,1.66386878,2815.9,2812.1,12.69853409]
[1749645786760,8.85566264,2815.3,2814.0,4.96]
[1749645787066,0.55,2815.0,2813.2,1.467]
[1749645787364,8.85566264,2814.8,2813.2,1.467]
[1749645787657,8.85566264,2814.6,2813.2,1.467]
[1749645787870,3.24956626,2814.7,2812.7,1.4212]
[1749645787871,8.85566264,2814.1,2812.7,1.4212]
[1749645789080,0.55,2814.0,2812.2,1.467]
[1749645789361,5.46967845,2814.4,2812.7,4.959]
[1749645789362,1.814,2814.2,2812.7,4.959]
[1749645789567,8.85566264,2814.1,2812.2,1.467]
[1749645789860,8.85566264,2813.6,2812.2,1.467]
[1749645790539,0.55,2813.5,2812.1,0.04]
[1749645790737,8.85566264,2812.7,2812.1,0.04]
[1749645791265,1.5005,2812.5,2812.1,0.04]
[1749645793646,1.5044,2813.0,2812.1,0.04]
[1749645793827,9.40566264,2812.9,2812.1,0.04]
[1749645794258,1.5044,2813.0,2812.1,0.04]
[1749645794735,1.5044,2813.0,2812.8,0.1776]
[1749645795530,1.4487,2813.5,2812.8,0.1776]
[1749645795974,1.4487,2813.5,2813.4,0.1776]
[1749645796325,1.3761,2814.0,2813.4,0.1776]
[1749645796740,1.3761,2814.0,2813.7,0.1776]
[1749645796979,1.815,2814.2,2812.7,10.0]
[1749645796980,1.815,2814.2,2813.9,0.1776]
[1749645797137,1.4839,2815.0,2814.1,0.1776]
[1749645797500,8.85566264,2814.8,2814.5,0.1776]
[1749645797789,1.4839,2815.0,2813.6,1.4218]
[1749645798094,1.4839,2815.0,2814.7,0.1776]
[1749645798788,1.3612,2815.4,2814.7,0.1776]
[1749645799540,1.815,2815.6,2814.7,0.1776]
[1749645800183,10.67066264,2815.6,2814.7,0.1776]
[1749645800686,8.85566264,2815.1,2814.7,0.1776]
[1749645801542,1.3628,2815.0,2814.7,0.1776]
[1749645801743,0.55,2814.8,2813.6,1.467]
[1749645801943,0.04,2814.9,2813.6,1.467]
[1749645802286,0.04,2814.9,2814.7,0.1776]
[1749645805091,1.4751,2814.8,2813.5,1.4498]
[1749645805294,1.4751,2814.8,2814.7,0.1776]
[1749645806196,11.83752507,2814.8,2814.7,0.1776]
[1749645806398,3.53186243,2814.8,2814.7,0.01]
[1749645806598,17.75417534,2814.8,2814.7,0.01]
[1749645806989,27.75417534,2814.8,2814.7,0.01]
[1749645807191,12.95916098,2814.2,2814.1,0.1776]
[1749645807387,0.55,2814.1,2813.0,1.4232]
[1749645807602,0.55,2814.1,2813.8,0.1776]
[1749645807874,4.10354488,2814.1,2813.8,0.1776]
[1749645808079,0.55,2813.8,2812.6,1.4197]
[1749645808302,0.55,2813.8,2813.6,0.1776]
[1749645808804,0.55,2813.6,2812.6,1.4197]
[1749645809118,1.804,2813.7,2812.6,1.4197]
[1749645809318,4.10358816,2814.1,2813.7,0.1776]
[1749645809620,2.028,2813.5,2812.2,1.4893]
[1749645809929,0.55,2813.1,2812.1,0.04]
[1749645810082,8.85566264,2813.3,2812.9,0.1776]
[1749645810283,3.55460735,2813.3,2812.9,0.1776]
[1749645810504,9.40566264,2813.4,2813.0,0.18068295]
[1749645810699,8.85566264,2813.4,2813.0,0.18068295]
[1749645810932,2.354,2813.3,2813.2,0.1776]
[1749645811496,0.55,2813.4,2813.2,0.18068273]
[1749645812443,1.4739,2814.0,2813.2,0.18068273]
[1749645812638,1.804,2814.3,2813.2,0.18068273]
[1749645813404,1.804,2814.3,2812.7,1.4131]
[1749645814036,0.55,2814.2,2812.7,1.4131]
[1749645814240,1.804,2814.3,2812.7,1.4131]
[1749645814442,11.006,2814.4,2812.7,1.4131]
[1749645814939,0.55,2814.3,2812.7,1.4131]
[1749645815343,0.55,2814.3,2812.8,1.14131]
[1749645815748,0.55,2814.4,2812.8,1.14131]
[1749645815906,1.5153,2814.5,2812.9,1.4478]
[1749645816620,1.5153,2814.5,2812.9,11.4478]
[1749645816817,8.85566264,2814.2,2813.0,1.29477198]
[1749645817254,1.5153,2814.5,2812.9,1.4478]
[1749645817404,0.55,2814.5,2812.9,1.4478]
[1749645817823,0.55,2814.2,2812.9,1.4478]
[1749645818347,0.04,2814.9,2814.2,1.5195]
[1749645819245,0.04,2814.9,2814.3,0.58]
[1749645819446,0.04,2814.9,2814.5,1.4195]
[1749645819649,0.04,2814.9,2814.7,1.4195]
[1749645822440,0.04,2814.9,2814.8,0.1776]
[1749645822752,0.04218411,2815.9,2814.9,0.0657]
[1749645822912,0.04218411,2815.9,2814.8,0.53022443]
[1749645822913,0.04218411,2815.9,2815.1,0.0657]
[1749645823114,0.04218411,2815.9,2815.8,0.1768]
[1749645823436,0.04218411,2815.9,2815.8,0.2425]
[1749645824349,0.04,2816.9,2816.3,10.0258]
[1749645824554,0.04,2816.9,2816.6,0.0258]
[1749645824722,0.04,2816.9,2816.4,1.81489492]
[1749645824723,0.04,2816.9,2816.8,0.0258]
[1749645825459,0.04,2816.9,2816.8,1.6677]
[1749645825666,0.005,2818.7,2816.9,0.0258]
[1749645825970,0.005,2818.7,2817.4,0.0258]
[1749645826172,0.005,2818.7,2817.5,0.58]
[1749645826371,0.005,2818.7,2817.6,0.6058]
[1749645826686,0.005,2818.7,2817.8,0.0258]
[1749645826969,0.005,2818.7,2817.8,0.6058]
[1749645827268,18.40079572,2817.9,2817.8,0.58]
[1749645827470,0.005,2818.7,2817.9,10.0]
[1749645827657,0.005,2818.7,2818.0,1.88556626]
[1749645827861,0.005,2818.7,2818.1,4.936]
[1749645828041,0.005,2818.7,2818.2,4.936]
[1749645828372,0.005,2818.7,2818.3,4.936]
[1749645828373,0.18238052,2818.4,2818.3,4.936]
[1749645828539,0.04,2818.9,2818.5,23.585]
[1749645828738,0.04,2819.9,2818.8,10.0]
[1749645829050,0.04,2819.9,2818.9,4.936]
[1749645829362,0.04,2819.9,2819.0,0.29612721]
[1749645829877,0.04,2819.9,2817.6,0.34854753]
[1749645830047,8.85566264,2819.8,2817.7,5.23126383]
[1749645830248,3.78045577,2819.9,2817.7,5.23126383]
[1749645830480,1.802,2819.8,2817.7,4.935]
[1749645830682,1.802,2819.7,2817.8,4.935]
[1749645830885,0.2342,2819.9,2817.8,4.935]
[1749645830886,0.2342,2819.9,2817.9,0.4935]
[1749645831275,1.5634,2819.8,2817.6,0.35527201]
[1749645831603,5.10979949,2819.8,2817.7,4.933]
[1749645831764,1.5634,2819.8,2817.2,8.85566264]
[1749645831972,0.55,2819.6,2817.3,0.88956626]
[1749645832172,0.55,2819.6,2817.4,4.933]
[1749645832173,1.4554,2819.3,2817.4,4.933]
[1749645832413,1.4554,2819.3,2817.2,0.29631641]
[1749645832711,1.802,2819.2,2817.3,4.932]
[1749645832872,0.32574,2819.1,2817.4,0.81912702]
[1749645833385,1.801,2819.0,2817.4,10.81912702]
[1749645833586,3.50418347,2817.5,2817.4,10.81912702]
[1749645833797,7.00836694,2818.5,2817.4,11.36912702]
[1749645833971,1.801,2819.3,2817.7,10.0]
[1749645834216,1.801,2819.3,2817.8,4.931]
[1749645834401,1.801,2819.3,2817.2,0.36328193]
[1749645834712,1.801,2819.3,2817.4,10.0]
[1749645834889,0.1801,2819.2,2817.5,1.4931]
[1749645835421,0.1801,2819.2,2817.6,4.931]
[1749645835422,1.801,2819.1,2817.6,4.931]
[1749645835784,1.801,2819.1,2817.7,4.93]
[1749645835785,1.4111,2819.0,2817.7,4.93]
[1749645836012,1.801,2818.9,2817.7,4.93]
[1749645836173,1.801,2818.9,2817.5,4.93]
[1749645836378,1.801,2818.9,2818.8,0.1768]
[1749645836578,2.12221,2818.9,2818.8,0.1768]
[1749645837313,2.11121,2818.9,2818.8,0.1768]
[1749645837720,1.79,2818.9,2818.8,0.1768]
[1749645838278,1.79,2819.1,2817.6,4.929]
[1749645838712,1.79,2819.1,2817.2,0.34667734]
[1749645838914,1.79,2819.1,2817.7,4.929]
[1749645839218,0.179,2819.0,2817.7,4.929]
[1749645839402,1.541,2818.9,2817.1,0.04]
[1749645839713,1.541,2818.9,2817.2,4.928]
[1749645839918,1.541,2818.9,2817.3,18.85566264]
[1749645840119,10.17976,2819.7,2817.4,0.55]
[1749645840120,1.541,2819.4,2817.4,0.55]
[1749645840276,1.79,2819.7,2817.9,10.0]
[1749645840501,1.79,2819.7,2817.8,8.85566264]
[1749645840502,3.54672814,2819.5,2817.1,0.39827107]
[1749645840701,8.85566264,2819.2,2817.2,4.928]
[1749645840933,1.541,2819.0,2817.2,5.46062711]
[1749645841120,1.541,2819.0,2817.1,0.39827107]
[1749645841325,1.541,2819.0,2817.1,0.04]
[1749645841500,1.79,2818.9,2817.1,0.04]
[1749645841701,5.337487,2818.9,2817.1,0.04]
[1749645841901,1.79,2818.8,2817.1,5.32247014]
[1749645842138,2.4778487,2818.8,2817.2,0.53224701]
[1749645842300,1.79,2818.8,2817.2,0.53224701]
[1749645842496,1.79,2818.8,2817.2,0.54294186]
[1749645842702,1.79,2818.8,2817.2,0.01069485]
[1749645842703,1.5123,2818.6,2817.2,0.01069485]
[1749645842941,8.85566264,2818.2,2817.2,0.01069485]
[1749645843141,1.4937,2817.6,2817.2,0.01069485]
[1749645843302,1.79,2817.5,2817.2,0.01069485]
[1749645843502,1.79,2817.4,2817.2,0.01069485]
[1749645843805,3.54949774,2817.3,2817.2,0.01069485]
[1749645844236,4.99079774,2817.3,2817.2,0.01069485]
[1749645844544,6.90937648,2817.3,2817.2,0.01069485]
[1749645844747,18.69937648,2817.3,2817.2,0.01069485]
[1749645844936,5.14987874,2817.3,2817.1,0.04]
[1749645845266,3.70857874,2817.3,2816.1,0.04]
[1749645845418,3.70857874,2817.3,2816.2,0.29642163]
[1749645845419,8.85566264,2816.9,2816.2,0.29642163]
[1749645845636,1.791,2816.9,2816.2,0.29642163]
[1749645845947,1.791,2816.8,2816.2,0.29642163]
[1749645846148,1.791,2816.8,2816.3,0.01069827]
[1749645846353,1.5249,2816.6,2816.3,0.01069827]
[1749645846548,8.85566264,2816.4,2816.3,0.01069827]
[1749645847125,8.85566264,2816.4,2816.3,0.18749827]
[1749645847434,8.85566264,2816.4,2816.3,0.01069827]
[1749645848260,10.64666264,2816.4,2816.3,0.01069827]
[1749645848455,1.433,2816.3,2816.1,0.04]
[1749645848751,13.55088417,2816.2,2816.1,0.04]
[1749645849135,14.98388417,2816.2,2816.1,0.04]
[1749645849369,11.433,2816.2,2816.1,0.04]
[1749645849527,1.433,2816.2,2816.1,0.04]
[1749645849862,9.191,2816.7,2816.1,0.04]
[1749645849863,3.3557,2816.4,2816.1,0.04]
[1749645850162,1.5647,2816.4,2816.1,0.04]
[1749645850362,1.5647,2816.4,2816.2,0.00324701]
[1749645850767,1.90027,2816.4,2816.2,0.00324701]
[1749645851062,11.90027,2816.4,2816.2,0.00324701]
[1749645851222,13.55075808,2816.3,2816.2,0.00324701]
[1749645851624,13.55075808,2816.3,2814.1,0.04]
[1749645851625,1.4272,2816.2,2814.1,0.04]
[1749645851939,1.4272,2815.5,2814.3,0.1067]
[1749645852142,1.791,2815.4,2814.3,0.1067]
[1749645852567,8.85566264,2815.2,2814.1,0.04]